[Event "BPB Limburg Open 2019 Group A"]
[Site "Maastricht, Netherlands"]
[Date "2019.06.07"]
[Round "1.5"]
[White "Gurevich, Mikhail"]
[Black "Baselmans, Luuk"]
[Result "1-0"]
[TimeControl "2h + 15 sec/move"]
[WhiteFideId "200930"]
[BlackFideId "1051008"]
[WhiteElo "2579"]
[BlackElo "2275"]

1. c4 {[%clk 02:00:21]} {[%emt 00:00:07]} e5 {[%clk 02:00:09]} {[%emt
00:00:21]} 2. Nc3 {[%clk 02:00:16]} {[%emt 00:00:20]} Nf6 {[%clk 02:00:11]}
{[%emt 00:00:13]} 3. Nf3 {[%clk 02:00:26]} {[%emt 00:00:05]} Nc6 {[%clk
02:00:19]} {[%emt 00:00:07]} 4. e3 {[%clk 02:00:15]} {[%emt 00:00:26]} Bb4
{[%clk 01:59:39]} {[%emt 00:00:55]} 5. Qc2 {[%clk 02:00:23]} {[%emt 00:00:06]}
O-O {[%clk 01:59:19]} {[%emt 00:00:35]} 6. Nd5 {[%clk 02:00:23]} {[%emt
00:00:15]} a5 {[%clk 01:58:34]} {[%emt 00:01:01]} 7. a3 {[%clk 01:54:38]}
{[%emt 00:06:01]} Be7 {[%clk 01:57:30]} {[%emt 00:01:19]} 8. Bd3 {[%clk
01:49:51]} {[%emt 00:05:02]} h6 {[%clk 01:50:36]} {[%emt 00:07:09]} 9. b3
{[%clk 01:49:08]} {[%emt 00:00:58]} d6 {[%clk 01:50:30]} {[%emt 00:00:22]} 10.
Bb2 {[%clk 01:49:00]} {[%emt 00:00:23]} Bg4 {[%clk 01:48:41]} {[%emt 00:02:03]}
11. h3 {[%clk 01:47:29]} {[%emt 00:01:46]} Bxf3 {[%clk 01:46:30]} {[%emt
00:02:27]} 12. gxf3 {[%clk 01:47:37]} {[%emt 00:00:06]} Nxd5 {[%clk 01:42:25]}
{[%emt 00:04:20]} 13. cxd5 {[%clk 01:47:46]} {[%emt 00:00:06]} Nb8 {[%clk
01:42:36]} {[%emt 00:00:04]} 14. Rg1 {[%clk 01:42:00]} {[%emt 00:06:00]} c6
{[%clk 01:41:40]} {[%emt 00:01:12]} 15. Qc4 {[%clk 01:39:22]} {[%emt 00:02:53]}
Qd7 {[%clk 01:37:17]} {[%emt 00:04:38]} 16. f4 {[%clk 01:37:31]} {[%emt
00:02:06]} b5 {[%clk 01:31:19]} {[%emt 00:06:12]} 17. Qe4 {[%clk 01:33:40]}
{[%emt 00:04:05]} f5 {[%clk 01:31:23]} {[%emt 00:00:12]} 18. Qg2 {[%clk
01:33:49]} {[%emt 00:00:05]} g5 {[%clk 01:16:43]} {[%emt 00:14:56]} 19. fxg5
{[%clk 01:26:04]} {[%emt 00:08:01]} hxg5 {[%clk 01:16:39]} {[%emt 00:00:18]} 20.
Qf3 {[%clk 01:25:59]} {[%emt 00:00:20]} c5 {[%clk 01:11:51]} {[%emt 00:05:04]}
21. Qh5 {[%clk 01:22:55]} {[%emt 00:03:18]} Rf7 {[%clk 01:07:38]} {[%emt
00:04:28]} 22. f4 {[%clk 01:15:33]} {[%emt 00:07:37]} Rh7 {[%clk 01:07:07]}
{[%emt 00:00:47]} 23. Qg6+ {[%clk 01:14:56]} {[%emt 00:00:51]} Rg7 {[%clk
01:07:07]} {[%emt 00:00:16]} 24. Qxf5 {[%clk 01:13:45]} {[%emt 00:01:26]} Qxf5
{[%clk 01:05:37]} {[%emt 00:01:45]} 25. Bxf5 {[%clk 01:13:54]} {[%emt
00:00:05]} gxf4 {[%clk 01:05:19]} {[%emt 00:00:34]} 26. Rxg7+ {[%clk 01:13:54]}
{[%emt 00:00:16]} Kxg7 {[%clk 01:05:28]} {[%emt 00:00:06]} 27. exf4 {[%clk
01:13:57]} {[%emt 00:00:11]} Na6 {[%clk 01:03:01]} {[%emt 00:02:42]} 28. fxe5
{[%clk 01:06:39]} {[%emt 00:07:33]} dxe5 {[%clk 01:02:46]} {[%emt 00:00:31]} 29.
Ke2 {[%clk 01:06:21]} {[%emt 00:00:33]} Bf6 {[%clk 01:01:25]} {[%emt 00:01:36]}
30. Rg1+ {[%clk 01:01:51]} {[%emt 00:04:45]} Kf7 {[%clk 00:59:38]} {[%emt
00:02:03]} 31. Rf1 {[%clk 01:01:43]} {[%emt 00:00:23]} Kg7 {[%clk 00:45:56]}
{[%emt 00:13:57]} 32. d6 {[%clk 00:53:07]} {[%emt 00:08:50]} Rd8 {[%clk
00:45:38]} {[%emt 00:00:33]} 33. d7 {[%clk 00:52:51]} {[%emt 00:00:31]} Rb8
{[%clk 00:33:46]} {[%emt 00:12:07]} 34. Be6 {[%clk 00:50:06]} {[%emt 00:03:00]}
Rd8 {[%clk 00:33:07]} {[%emt 00:00:54]} 35. a4 {[%clk 00:41:35]} {[%emt
00:08:45]} b4 {[%clk 00:31:16]} {[%emt 00:02:05]} 36. d3 {[%clk 00:37:30]}
{[%emt 00:04:20]} Nc7 {[%clk 00:30:39]} {[%emt 00:00:52]} 37. Rg1+ {[%clk
00:36:29]} {[%emt 00:01:16]} Kf8 {[%clk 00:30:18]} {[%emt 00:00:37]} 38. Bf5
{[%clk 00:34:03]} {[%emt 00:02:40]} Ke7 {[%clk 00:30:01]} {[%emt 00:00:32]} 39.
Ke3 {[%clk 00:32:15]} {[%emt 00:02:03]} Nd5+ {[%clk 00:28:24]} {[%emt
00:01:52]} 40. Kf3 {[%clk 00:25:50]} {[%emt 00:06:39]} Nb6 {[%clk 00:28:12]}
{[%emt 00:00:28]} 41. Bc1 {[%clk 00:24:46]} {[%emt 00:01:19]} Nxd7 {[%clk
00:27:59]} {[%emt 00:00:28]} 42. Be3 {[%clk 00:24:55]} {[%emt 00:00:05]} Kf7
{[%clk 00:25:51]} {[%emt 00:02:23]} 43. Ke4 {[%clk 00:19:17]} {[%emt 00:05:53]}
Be7 {[%clk 00:25:51]} {[%emt 00:00:16]} 44. Bxd7 {[%clk 00:18:47]} {[%emt
00:00:45]} Rxd7 {[%clk 00:25:59]} {[%emt 00:00:07]} 45. Rc1 {[%clk 00:18:54]}
{[%emt 00:00:07]} Ke6 {[%clk 00:25:32]} {[%emt 00:00:43]} 46. h4 {[%clk
00:18:58]} {[%emt 00:00:11]} Rd8 {[%clk 00:20:00]} {[%emt 00:05:47]} 47. h5
{[%clk 00:18:58]} {[%emt 00:00:14]} Rh8 {[%clk 00:19:45]} {[%emt 00:00:31]} 48.
h6 {[%clk 00:17:29]} {[%emt 00:01:44]} Rh7 {[%clk 00:18:38]} {[%emt 00:01:23]}
49. Rh1 {[%clk 00:16:54]} {[%emt 00:00:49]} Bf8 {[%clk 00:18:17]} {[%emt
00:00:36]} 50. Rh3 {[%clk 00:16:49]} {[%emt 00:00:19]} Be7 {[%clk 00:17:58]}
{[%emt 00:00:34]} 51. Rg3 {[%clk 00:16:49]} {[%emt 00:00:15]} Kf6 {[%clk
00:17:22]} {[%emt 00:00:52]} 52. Bg5+ {[%clk 00:16:51]} {[%emt 00:00:13]} 1-0

[Event "BPB Limburg Open 2019 Group A"]
[Site "Maastricht, Netherlands"]
[Date "2019.06.07"]
[Round "1.6"]
[White "Klinova, Masha"]
[Black "Ernst, Sipke"]
[Result "1/2-1/2"]
[TimeControl "2h + 15 sec/move"]
[WhiteFideId "2802015"]
[BlackFideId "1004689"]
[WhiteElo "2266"]
[BlackElo "2541"]

1. e4 {[%clk 02:00:28]} {[%emt 00:00:01]} e6 {[%clk 02:00:23]} {[%emt
00:00:08]} 2. Nf3 {[%clk 02:00:23]} {[%emt 00:00:20]} c5 {[%clk 02:00:33]}
{[%emt 00:00:05]} 3. c4 {[%clk 02:00:23]} {[%emt 00:00:15]} Nc6 {[%clk
02:00:28]} {[%emt 00:00:20]} 4. Nc3 {[%clk 02:00:32]} {[%emt 00:00:06]} Nf6
{[%clk 01:59:15]} {[%emt 00:01:28]} 5. Be2 {[%clk 02:00:42]} {[%emt 00:00:06]}
b6 {[%clk 01:58:57]} {[%emt 00:00:33]} 6. d4 {[%clk 01:58:32]} {[%emt
00:02:24]} cxd4 {[%clk 01:59:06]} {[%emt 00:00:06]} 7. Nxd4 {[%clk 01:58:43]}
{[%emt 00:00:04]} Bb7 {[%clk 01:56:58]} {[%emt 00:02:24]} 8. Be3 {[%clk
01:55:33]} {[%emt 00:03:24]} Qb8 {[%clk 01:56:05]} {[%emt 00:01:08]} 9. O-O
{[%clk 01:52:52]} {[%emt 00:02:57]} Bd6 {[%clk 01:51:11]} {[%emt 00:05:08]} 10.
h3 {[%clk 01:40:20]} {[%emt 00:12:47]} Nxd4 {[%clk 01:48:34]} {[%emt 00:02:53]}
11. Qxd4 {[%clk 01:39:50]} {[%emt 00:00:45]} Be5 {[%clk 01:48:02]} {[%emt
00:00:46]} 12. Qd3 {[%clk 01:39:13]} {[%emt 00:00:53]} O-O {[%clk 01:48:08]}
{[%emt 00:00:09]} 13. Bd4 {[%clk 01:37:36]} {[%emt 00:01:52]} Rd8 {[%clk
01:45:31]} {[%emt 00:02:52]} 14. Bxe5 {[%clk 01:28:12]} {[%emt 00:09:39]} Qxe5
{[%clk 01:45:38]} {[%emt 00:00:07]} 15. f4 {[%clk 01:28:25]} {[%emt 00:00:02]}
Qc5+ {[%clk 01:45:31]} {[%emt 00:00:22]} 16. Kh2 {[%clk 01:28:33]} {[%emt
00:00:06]} Rac8 {[%clk 01:44:30]} {[%emt 00:01:17]} 17. e5 {[%clk 01:21:12]}
{[%emt 00:07:37]} Ne8 {[%clk 01:44:21]} {[%emt 00:00:23]} 18. Rad1 {[%clk
01:15:03]} {[%emt 00:06:24]} d6 {[%clk 01:39:14]} {[%emt 00:05:22]} 19. Qg3
{[%clk 01:13:57]} {[%emt 00:01:20]} g6 {[%clk 01:37:06]} {[%emt 00:02:24]} 20.
Nb5 {[%clk 01:06:24]} {[%emt 00:07:48]} a6 {[%clk 01:28:13]} {[%emt 00:09:07]}
21. Nxd6 {[%clk 01:01:56]} {[%emt 00:04:44]} Nxd6 {[%clk 01:28:21]} {[%emt
00:00:07]} 22. exd6 {[%clk 01:02:07]} {[%emt 00:00:03]} Rxd6 {[%clk 01:28:23]}
{[%emt 00:00:14]} 23. Rxd6 {[%clk 01:01:56]} {[%emt 00:00:26]} Qxd6 {[%clk
01:28:33]} {[%emt 00:00:05]} 24. Rd1 {[%clk 01:00:30]} {[%emt 00:01:41]} Qc7
{[%clk 01:26:25]} {[%emt 00:02:22]} 25. b3 {[%clk 01:00:27]} {[%emt 00:00:19]}
h6 {[%clk 01:24:21]} {[%emt 00:02:19]} 26. Bf3 {[%clk 00:50:29]} {[%emt
00:10:12]} b5 {[%clk 01:16:56]} {[%emt 00:07:41]} 27. Bxb7 {[%clk 00:43:49]}
{[%emt 00:06:55]} Qxb7 {[%clk 01:17:04]} {[%emt 00:00:06]} 28. cxb5 {[%clk
00:37:08]} {[%emt 00:06:56]} axb5 {[%clk 01:16:55]} {[%emt 00:00:25]} 29. Qe3
{[%clk 00:36:42]} {[%emt 00:00:40]} b4 {[%clk 01:13:27]} {[%emt 00:03:44]} 30.
Rd2 {[%clk 00:36:25]} {[%emt 00:00:31]} Kh7 {[%clk 01:11:56]} {[%emt 00:01:46]}
31. Qd4 {[%clk 00:36:13]} {[%emt 00:00:27]} Qe7 {[%clk 01:04:40]} {[%emt
00:07:31]} 32. Qe4 {[%clk 00:32:41]} {[%emt 00:03:46]} Rc1 {[%clk 01:02:35]}
{[%emt 00:02:22]} 33. Qd4 {[%clk 00:28:20]} {[%emt 00:04:35]} Rc3 {[%clk
00:57:50]} {[%emt 00:05:00]} 34. Re2 {[%clk 00:22:17]} {[%emt 00:06:19]} Qh4
{[%clk 00:50:38]} {[%emt 00:07:27]} 35. Qf2 {[%clk 00:22:09]} {[%emt 00:00:23]}
Qd8 {[%clk 00:44:58]} {[%emt 00:05:54]} 36. Rd2 {[%clk 00:19:09]} {[%emt
00:03:16]} Qe7 {[%clk 00:42:44]} {[%emt 00:02:29]} 37. Qd4 {[%clk 00:19:07]}
{[%emt 00:00:18]} h5 {[%clk 00:42:18]} {[%emt 00:00:41]} 38. Re2 {[%clk
00:16:04]} {[%emt 00:03:17]} Qh4 {[%clk 00:41:08]} {[%emt 00:01:26]} 39. Qf2
{[%clk 00:16:00]} {[%emt 00:00:19]} Qf6 {[%clk 00:40:54]} {[%emt 00:00:27]} 40.
Re4 {[%clk 00:15:28]} {[%emt 00:00:48]} Qe7 {[%clk 00:41:06]} {[%emt 00:00:04]}
41. Rc4 {[%clk 00:15:08]} {[%emt 00:00:35]} Rxc4 {[%clk 00:34:53]} {[%emt
00:06:28]} 42. bxc4 {[%clk 00:15:15]} {[%emt 00:00:09]} Qf6 {[%clk 00:35:06]}
{[%emt 00:00:02]} 43. Qe3 {[%clk 00:11:20]} {[%emt 00:04:08]} Qb2 {[%clk
00:25:08]} {[%emt 00:10:14]} 44. Qc5 {[%clk 00:06:20]} {[%emt 00:05:15]} Kg8
{[%clk 00:21:02]} {[%emt 00:04:22]} 45. Qd6 {[%clk 00:05:58]} {[%emt 00:00:37]}
h4 {[%clk 00:15:32]} {[%emt 00:05:46]} 46. c5 {[%clk 00:05:32]} {[%emt
00:00:40]} Qc3 {[%clk 00:12:46]} {[%emt 00:03:01]} 47. c6 {[%clk 00:05:42]}
{[%emt 00:00:05]} 1/2-1/2

[Event "BPB Limburg Open 2019 Group A"]
[Site "Maastricht, Netherlands"]
[Date "2019.06.07"]
[Round "1.7"]
[White "Van Foreest, Lucas"]
[Black "Eckardt, Joshua"]
[Result "1-0"]
[TimeControl "2h + 15 sec/move"]
[WhiteFideId "1039792"]
[BlackFideId "12941646"]
[WhiteElo "2522"]
[BlackElo "2260"]

1. e4 {[%clk 02:00:25]} {[%emt 00:00:04]} e6 {[%clk 02:00:20]} {[%emt
00:00:11]} 2. d4 {[%clk 02:00:28]} {[%emt 00:00:12]} d5 {[%clk 02:00:26]}
{[%emt 00:00:08]} 3. Nd2 {[%clk 02:00:35]} {[%emt 00:00:09]} c5 {[%clk
02:00:26]} {[%emt 00:00:14]} 4. exd5 {[%clk 01:59:32]} {[%emt 00:01:18]} Qxd5
{[%clk 02:00:33]} {[%emt 00:00:08]} 5. dxc5 {[%clk 01:59:41]} {[%emt 00:00:06]}
Nf6 {[%clk 01:58:58]} {[%emt 00:01:50]} 6. Nb3 {[%clk 01:58:58]} {[%emt
00:00:59]} Qe4+ {[%clk 01:46:36]} {[%emt 00:12:36]} 7. Be3 {[%clk 01:43:56]}
{[%emt 00:15:17]} Nbd7 {[%clk 01:32:57]} {[%emt 00:13:53]} 8. Be2 {[%clk
01:39:20]} {[%emt 00:04:52]} Nd5 {[%clk 01:13:51]} {[%emt 00:19:21]} 9. Bf3
{[%clk 01:37:35]} {[%emt 00:02:00]} Qb4+ {[%clk 01:09:41]} {[%emt 00:04:25]} 10.
c3 {[%clk 01:28:15]} {[%emt 00:09:35]} Nxe3 {[%clk 00:59:35]} {[%emt 00:10:21]}
11. cxb4 {[%clk 01:27:46]} {[%emt 00:00:44]} Nxd1 {[%clk 00:59:44]} {[%emt
00:00:06]} 12. Rxd1 {[%clk 01:27:58]} {[%emt 00:00:03]} Ne5 {[%clk 00:59:21]}
{[%emt 00:00:37]} 13. Be2 {[%clk 01:24:28]} {[%emt 00:03:45]} Be7 {[%clk
00:51:02]} {[%emt 00:08:34]} 14. Bb5+ {[%clk 01:17:03]} {[%emt 00:07:40]} Bd7
{[%clk 00:49:56]} {[%emt 00:01:21]} 15. Bxd7+ {[%clk 01:15:56]} {[%emt
00:01:23]} Nxd7 {[%clk 00:50:02]} {[%emt 00:00:08]} 16. Ke2 {[%clk 00:55:00]}
{[%emt 00:21:12]} Bf6 {[%clk 00:43:45]} {[%emt 00:06:31]} 17. Nf3 {[%clk
00:54:51]} {[%emt 00:00:25]} Bxb2 {[%clk 00:35:04]} {[%emt 00:08:57]} 18. Rd3
{[%clk 00:35:00]} {[%emt 00:20:06]} O-O-O {[%clk 00:30:45]} {[%emt 00:04:33]}
19. Rhd1 {[%clk 00:22:39]} {[%emt 00:12:37]} Ne5 {[%clk 00:26:30]} {[%emt
00:04:30]} 20. Nxe5 {[%clk 00:22:27]} {[%emt 00:00:27]} Bxe5 {[%clk 00:26:37]}
{[%emt 00:00:08]} 21. Na5 {[%clk 00:21:55]} {[%emt 00:00:47]} Rxd3 {[%clk
00:24:44]} {[%emt 00:02:07]} 22. Rxd3 {[%clk 00:22:08]} {[%emt 00:00:03]} Bc7
{[%clk 00:24:35]} {[%emt 00:00:24]} 23. Nc4 {[%clk 00:22:20]} {[%emt 00:00:03]}
Rd8 {[%clk 00:24:26]} {[%emt 00:00:23]} 24. b5 {[%clk 00:22:18]} {[%emt
00:00:18]} Rxd3 {[%clk 00:20:57]} {[%emt 00:03:44]} 25. Kxd3 {[%clk 00:22:31]}
{[%emt 00:00:01]} Kd7 {[%clk 00:20:55]} {[%emt 00:00:16]} 26. Kd4 {[%clk
00:21:41]} {[%emt 00:01:05]} f6 {[%clk 00:20:02]} {[%emt 00:01:08]} 27. h3
{[%clk 00:20:42]} {[%emt 00:01:14]} h5 {[%clk 00:18:41]} {[%emt 00:01:36]} 28.
a4 {[%clk 00:20:52]} {[%emt 00:00:06]} Bd8 {[%clk 00:17:19]} {[%emt 00:01:37]}
29. Nb2 {[%clk 00:17:16]} {[%emt 00:03:51]} Bc7 {[%clk 00:16:50]} {[%emt
00:00:43]} 30. Nd3 {[%clk 00:17:25]} {[%emt 00:00:07]} Bd8 {[%clk 00:16:24]}
{[%emt 00:00:41]} 31. Kc3 {[%clk 00:15:56]} {[%emt 00:01:44]} Bc7 {[%clk
00:15:04]} {[%emt 00:01:35]} 32. Kc4 {[%clk 00:16:08]} {[%emt 00:00:03]} Bd8
{[%clk 00:14:48]} {[%emt 00:00:30]} 33. Nf4 {[%clk 00:16:20]} {[%emt 00:00:03]}
h4 {[%clk 00:14:16]} {[%emt 00:00:46]} 34. f3 {[%clk 00:12:59]} {[%emt
00:03:37]} g5 {[%clk 00:12:58]} {[%emt 00:01:32]} 35. Ne2 {[%clk 00:13:06]}
{[%emt 00:00:09]} Bc7 {[%clk 00:11:09]} {[%emt 00:02:04]} 36. Nd4 {[%clk
00:11:59]} {[%emt 00:01:22]} Bf4 {[%clk 00:09:06]} {[%emt 00:02:18]} 37. a5
{[%clk 00:11:19]} {[%emt 00:00:56]} Be3 {[%clk 00:07:36]} {[%emt 00:01:44]} 38.
Nc2 {[%clk 00:10:42]} {[%emt 00:00:53]} Bd2 {[%clk 00:06:50]} {[%emt 00:01:00]}
39. a6 {[%clk 00:10:56]} {[%emt 00:00:02]} bxa6 {[%clk 00:06:46]} {[%emt
00:00:19]} 40. bxa6 {[%clk 00:11:10]} {[%emt 00:00:01]} Bf4 {[%clk 00:06:11]}
{[%emt 00:00:49]} 41. Kb5 {[%clk 00:11:08]} {[%emt 00:00:17]} Be5 {[%clk
00:06:09]} {[%emt 00:00:17]} 42. Nb4 {[%clk 00:10:53]} {[%emt 00:00:30]} 1-0

[Event "BPB Limburg Open 2019 Group A"]
[Site "Maastricht, Netherlands"]
[Date "2019.06.07"]
[Round "1.8"]
[White "Hoerstmann, Rudi"]
[Black "Nasuta, Grzegorz"]
[Result "0-1"]
[TimeControl "2h + 15 sec/move"]
[WhiteFideId "4604075"]
[BlackFideId "1141686"]
[WhiteElo "2254"]
[BlackElo "2518"]

1. d4 {[%clk 02:00:21]} {[%emt 00:00:08]} Nf6 {[%clk 02:00:21]} {[%emt
00:00:09]} 2. c4 {[%clk 02:00:27]} {[%emt 00:00:09]} g6 {[%clk 02:00:31]}
{[%emt 00:00:05]} 3. Nc3 {[%clk 02:00:29]} {[%emt 00:00:13]} d5 {[%clk
02:00:41]} {[%emt 00:00:05]} 4. cxd5 {[%clk 02:00:38]} {[%emt 00:00:07]} Nxd5
{[%clk 02:00:52]} {[%emt 00:00:05]} 5. e4 {[%clk 02:00:46]} {[%emt 00:00:06]}
Nxc3 {[%clk 02:01:04]} {[%emt 00:00:04]} 6. bxc3 {[%clk 02:00:56]} {[%emt
00:00:04]} Bg7 {[%clk 02:01:13]} {[%emt 00:00:05]} 7. Be3 {[%clk 02:00:23]}
{[%emt 00:00:48]} c5 {[%clk 02:01:17]} {[%emt 00:00:11]} 8. Qd2 {[%clk
02:00:28]} {[%emt 00:00:10]} Qa5 {[%clk 02:00:47]} {[%emt 00:00:45]} 9. Nf3
{[%clk 02:00:23]} {[%emt 00:00:19]} O-O {[%clk 01:57:02]} {[%emt 00:04:01]} 10.
Rb1 {[%clk 01:59:57]} {[%emt 00:00:40]} b6 {[%clk 01:49:55]} {[%emt 00:07:23]}
11. Rb5 {[%clk 01:44:34]} {[%emt 00:15:38]} Qa4 {[%clk 01:49:49]} {[%emt
00:00:21]} 12. dxc5 {[%clk 01:42:58]} {[%emt 00:01:51]} Qxe4 {[%clk 01:38:44]}
{[%emt 00:11:20]} 13. cxb6 {[%clk 01:42:54]} {[%emt 00:00:18]} axb6 {[%clk
01:38:22]} {[%emt 00:00:38]} 14. Be2 {[%clk 01:24:33]} {[%emt 00:18:35]} Be6
{[%clk 01:18:43]} {[%emt 00:19:55]} 15. Rb4 {[%clk 00:55:18]} {[%emt 00:29:30]}
Qd5 {[%clk 01:09:31]} {[%emt 00:09:26]} 16. a4 {[%clk 00:40:30]} {[%emt
00:15:03]} Qc6 {[%clk 00:38:40]} {[%emt 00:31:06]} 17. c4 {[%clk 00:39:47]}
{[%emt 00:00:58]} Rxa4 {[%clk 00:38:28]} {[%emt 00:00:27]} 18. O-O {[%clk
00:39:47]} {[%emt 00:00:15]} Nd7 {[%clk 00:28:51]} {[%emt 00:09:53]} 19. Rfb1
{[%clk 00:38:33]} {[%emt 00:01:29]} Rxb4 {[%clk 00:25:39]} {[%emt 00:03:27]} 20.
Qxb4 {[%clk 00:38:39]} {[%emt 00:00:09]} Rc8 {[%clk 00:24:10]} {[%emt
00:01:44]} 21. Qxe7 {[%clk 00:15:28]} {[%emt 00:23:25]} Bf8 {[%clk 00:18:04]}
{[%emt 00:06:22]} 22. Qh4 {[%clk 00:15:17]} {[%emt 00:00:25]} Bxc4 {[%clk
00:17:46]} {[%emt 00:00:34]} 23. Rc1 {[%clk 00:13:39]} {[%emt 00:01:53]} b5
{[%clk 00:17:55]} {[%emt 00:00:05]} 24. h3 {[%clk 00:12:37]} {[%emt 00:01:17]}
Qa6 {[%clk 00:12:21]} {[%emt 00:05:50]} 25. Bxc4 {[%clk 00:10:06]} {[%emt
00:02:45]} bxc4 {[%clk 00:12:15]} {[%emt 00:00:22]} 26. Bd4 {[%clk 00:09:55]}
{[%emt 00:00:25]} Qd6 {[%clk 00:07:00]} {[%emt 00:05:29]} 27. Bc3 {[%clk
00:07:12]} {[%emt 00:02:58]} Qd5 {[%clk 00:05:59]} {[%emt 00:01:17]} 28. Nd2
{[%clk 00:05:21]} {[%emt 00:02:06]} h5 {[%clk 00:01:19]} {[%emt 00:04:55]} 29.
Ne4 {[%clk 00:02:19]} {[%emt 00:03:16]} Bg7 {[%clk 00:01:28]} {[%emt 00:00:06]}
30. Bxg7 {[%clk 00:02:14]} {[%emt 00:00:20]} Kxg7 {[%clk 00:01:42]} {[%emt
00:00:01]} 31. Qf4 {[%clk 00:02:18]} {[%emt 00:00:11]} Qe5 {[%clk 00:01:29]}
{[%emt 00:00:28]} 32. Qxe5+ {[%clk 00:01:39]} {[%emt 00:00:54]} Nxe5 {[%clk
00:01:43]} {[%emt 00:00:02]} 33. Rc3 {[%clk 00:01:49]} {[%emt 00:00:04]} Nd7
{[%clk 00:01:03]} {[%emt 00:00:56]} 34. Kf1 {[%emt 00:01:26]} Nb6 35. Nd2
{[%clk 00:00:50]} {[%emt 00:00:03]} Kf6 {[%clk 00:01:17]} {[%emt 00:00:16]} 36.
Ke2 {[%clk 00:00:48]} {[%emt 00:00:17]} Ke5 {[%clk 00:01:24]} {[%emt 00:00:08]}
37. f3 {[%clk 00:00:24]} {[%emt 00:00:39]} Rc6 {[%clk 00:00:46]} {[%emt
00:00:52]} 38. Re3+ {[%clk 00:00:24]} {[%emt 00:00:15]} Kd5 {[%clk 00:00:55]}
{[%emt 00:00:05]} 39. Ne4 {[%clk 00:00:36]} {[%emt 00:00:03]} Re6 {[%clk
00:00:38]} {[%emt 00:00:33]} 40. Kd2 {[%clk 00:00:31]} {[%emt 00:00:20]} Kd4
{[%clk 00:00:48]} {[%emt 00:00:04]} 41. Ra3 {[%clk 00:00:24]} {[%emt 00:00:22]}
Nd5 {[%clk 00:01:02]} {[%emt 00:00:01]} 42. Ra4 {[%clk 00:00:26]} {[%emt
00:00:12]} Rb6 {[%clk 00:00:55]} {[%emt 00:00:20]} 43. Ra7 {[%clk 00:00:20]}
{[%emt 00:00:23]} f5 {[%clk 00:00:50]} {[%emt 00:00:20]} 44. Ng5 {[%clk
00:00:21]} {[%emt 00:00:14]} Rb2+ {[%clk 00:00:40]} {[%emt 00:00:25]} 45. Kc1
{[%clk 00:00:30]} {[%emt 00:00:05]} Rxg2 {[%clk 00:00:48]} {[%emt 00:00:06]} 46.
h4 {[%clk 00:00:44]} {[%emt 00:00:02]} Kd3 {[%clk 00:00:32]} {[%emt 00:00:31]}
47. Rd7 {[%clk 00:00:46]} {[%emt 00:00:13]} Rg1+ {[%clk 00:00:43]} {[%emt
00:00:04]} 48. Kb2 {[%clk 00:00:58]} {[%emt 00:00:03]} c3+ {[%clk 00:00:52]}
{[%emt 00:00:06]} 49. Kb3 {[%clk 00:01:10]} {[%emt 00:00:03]} Rb1+ {[%clk
00:00:49]} {[%emt 00:00:17]} 50. Ka2 {[%clk 00:01:23]} {[%emt 00:00:02]} c2
{[%clk 00:00:35]} {[%emt 00:00:29]} 51. Rxd5+ {[%clk 00:01:17]} {[%emt
00:00:21]} Kc4 {[%clk 00:00:26]} {[%emt 00:00:24]} 52. Rd8 {[%clk 00:01:29]}
{[%emt 00:00:04]} c1=Q {[%clk 00:00:28]} {[%emt 00:00:12]} 0-1